Cogmind - Beta 12 X6 @@@ ROGUE MODE // 2023.02.05 @ 22:55:28 Player: Lunatic Blue Result: Destroyed by Lightning with EMDS Performance ------------- Evolutions (5) 2500 Regions Visited (25) 5000 Robots Destroyed (353) 1765 Value Destroyed (14002) 14002 Prototype IDs (41) 820 Alien Tech Used (0) 0 Bonus (5821) 5821 TOTAL SCORE: 29908 Bonus ------- Triggered High Security 500 High Alert Combat Kills 3147 Follower Combat Kills 1909 Network Hubs Disabled 200 Met Data Miner 300 Met Imprinter 300 Destroyed Z-Imprinter 1000 Triggered Deep Caves Wall 500 Exposed GOLEM Chamber 500 A7 Reached Mainframe 300 Met R17 at Cetus 500 Friendly Fire -3335 Cogmind --------- Core Integrity 0/1000 Matter 233/300 Energy 310/1100 System Corruption 29% Temperature Cool (0) Movement Immobile (Siege) Ox1 Location -5/Hub_04(d) Parts ------- > --- POWER (2) -------- Assembled Flux Generator > --- PROPULSION (4) --- Centrium Heavy Treads Assembled Alloy Leg Assembled Alloy Leg > --- UTILITY (9) ------ Assembled Nanovents Huge Storage Unit Assembled Biocell Array Advanced Terrain Scan Processor GOLEM Unit > --- WEAPON (2) ------- Assembled Focal Cannon Rocket Array > --- INVENTORY (25) --- Neutrino Core Neutrino Core Quantum Reactor Centrium Heavy Treads Centrium Heavy Treads Advanced Energy Well (0) Zionite Biocell (0) Zionite Biocell (0) Improved Signal Interpreter Advanced Terrain Scanner Improved Medium Armor Plating Improved Medium Armor Plating Centrium Medium Armor Plating Centrium Medium Armor Plating Centrium Medium Armor Plating GOLEM Unit Rocket Array Plasma Cutter Peak State ------------ > --- POWER ------------ Assembled Flux Generator > --- PROPULSION ------- Centrium Heavy Treads Assembled Alloy Leg Assembled Alloy Leg > --- UTILITY ---------- Assembled Nanovents Huge Storage Unit Assembled Biocell Array Advanced Terrain Scan Processor Core Analyzer Centrium Medium Armor Plating Assembled Alloy Armor GOLEM Unit > --- WEAPON ----------- Assembled Focal Cannon Assembled Focal Cannon > --- INVENTORY -------- Neutrino Core Neutrino Core Quantum Reactor Centrium Heavy Treads Centrium Heavy Treads Advanced Energy Well Zionite Biocell Zionite Biocell Improved Signal Interpreter Advanced Terrain Scanner Improved Medium Armor Plating Improved Medium Armor Plating Centrium Medium Armor Plating Centrium Medium Armor Plating Damper Plating GOLEM Unit Rocket Array Rocket Array Plasma Cutter [Rating: 148] Favorites ----------- Power Assembled Flux Generator Engine Cooled Ion Engine Power Core Light Nuclear Core Reactor Assembled Flux Generator Propulsion Assembled Alloy Leg Treads Light Treads Leg Assembled Alloy Leg Wheel Wheel Utility Huge Storage Unit Device GOLEM Unit Storage Huge Storage Unit Processor Core Analyzer Hackware Hacking Suite Protection Layered Medium Armor Plating Weapon Assembled Focal Cannon Energy Gun Gatling Laser Energy Cannon Assembled Focal Cannon Ballistic Gun Improved Assault Rifle Launcher Heavy Missile Launcher Special Weapon Plasma Cutter Impact Weapon Power Maul Slashing Weapon Great Axe Special Melee Weapon Datajack Build | -11 -10 -10 -9 -9 -9 -8 -8 -7 -7 -7 -7 -7 -6 -6 -6 -6 -6 -5 -5 -5 -5 -5 -5 -5 -5 ------- Run | Jun Mat Min Mat Min Exi Min Mat Fac Low Low Zio Dee Pro Fac Low Low Dat Pro Fac Was Fac Ext Cet Arc Hub Slots Evolved 10 | . . . 2 . . . 2 2 . . . . . 2 . . . . 2 . . . . . . Power 1 | . . . . . . . . 1 . . . . . . . . . . . . . . . . . Propulsion 2 | . . . . . . . 1 . . . . . . 1 . . . . . . . . . . . Utility 7 | . . . 2 . . . 1 1 . . . . . 1 . . . . 2 . . . . . . Weapon . | . . . . . . . . . . . . . . . . . . . . . . . . . . Parts Attached 274 | . 20 6 33 5 . 5 34 12 2 18 6 61 . 8 9 1 . 1 3 5 31 8 4 1 1 Power 25 | . 5 1 2 . . . 3 2 2 . 1 4 . . . . . . . . 5 . . . . Engine 16 | . 5 1 2 . . . 1 2 2 . 1 2 . . . . . . . . . . . . . Core 2 | . . . . . . . 2 . . . . . . . . . . . . . . . . . . Reactor 7 | . . . . . . . . . . . . 2 . . . . . . . . 5 . . . . Propulsion 57 | . 6 2 6 1 . 1 10 . . 5 1 7 . 2 1 1 . . . 2 5 4 2 1 . Treads 41 | . 3 1 4 1 . 1 9 . . 5 1 5 . 2 1 . . . . 2 3 . 2 1 . Leg 8 | . . . . . . . . . . . . 2 . . . . . . . . 2 4 . . . Wheel 8 | . 3 1 2 . . . 1 . . . . . . . . 1 . . . . . . . . . Hover . | . . . . . . . . . . . . . . . . . . . . . . . . . . Flight . | . . . . . . . . . . . . . . . . . . . . . . . . . . Utility 111 | . 3 1 12 1 . 2 10 6 . 9 . 27 . 6 6 . . . 3 3 16 4 2 . . Device 46 | . 2 1 4 1 . 1 2 4 . 4 . 7 . 1 3 . . . . . 14 2 . . . Storage 4 | . 1 . 1 . . . . . . . . 2 . . . . . . . . . . . . . Processor 13 | . . . 1 . . 1 2 . . 3 . . . 3 . . . . 2 . 1 . . . . Hackware 3 | . . . . . . . 1 . . . . 1 . . . . . . . . 1 . . . . Protection 45 | . . . 6 . . . 5 2 . 2 . 17 . 2 3 . . . 1 3 . 2 2 . . Artifact . | . . . . . . . . . . . . . . . . . . . . . . . . . . Weapon 81 | . 6 2 13 3 . 2 11 4 . 4 4 23 . . 2 . . 1 . . 5 . . . 1 Energy Gun 12 | . 4 . . . . . 6 2 . . . . . . . . . . . . . . . . . Energy Cannon 15 | . . . 1 . . . . . . 2 . 10 . . . . . . . . 2 . . . . Ballistic Gun 19 | . 1 2 8 2 . 2 3 . . . 1 . . . . . . . . . . . . . . Ballistic Cannon . | . . . . . . . . . . . . . . . . . . . . . . . . . . Launcher 23 | . 1 . 1 1 . . 2 1 . 1 2 8 . . 1 . . 1 . . 3 . . . 1 Special Weapon 1 | . . . . . . . . . . . . 1 . . . . . . . . . . . . . Impact Weapon 7 | . . . . . . . . . . 1 1 4 . . 1 . . . . . . . . . . Slashing Weapon 1 | . . . . . . . . 1 . . . . . . . . . . . . . . . . . Piercing Weapon . | . . . . . . . . . . . . . . . . . . . . . . . . . . Special Melee Weapon 3 | . . . 3 . . . . . . . . . . . . . . . . . . . . . . Unidentified Prototypes 19 | . . . 3 . . . 2 1 . . 1 10 . . . . . . . . . . 2 . . Corrupted Parts 3 | . . . . . . . . . . 3 . . . . . . . . . . . . . . . System Corruption 30 | . . . . . . . . . . 30 . . . . . . . . . . . . . . . Parts Lost 73 | . 2 2 6 1 . 3 9 . . 12 . 5 . 1 7 . . . . . 18 6 . . 1 Power 9 | . 1 . . . . . 1 . . 2 . 1 . . 1 . . . . . 2 1 . . . Propulsion 20 | . . 1 2 . . 1 2 . . 3 . 2 . . 2 . . . . . 6 1 . . . Utility 27 | . . . 4 . . . 5 . . 5 . 2 . 1 2 . . . . . 5 2 . . 1 Weapon 17 | . 1 1 . 1 . 2 1 . . 2 . . . . 2 . . . . . 5 2 . . . Highest Loss Streak 11 | . 1 1 2 1 . 2 4 . . 11 . 2 . 1 7 . . . . . 6 2 . . 1 To Critical Strikes 1 | . . . . . . . . . . . . . . . . . . . . . 1 . . . . Average Slot Usage (%) 87 | . 94 99 98 100 100 99 98 99 100 77 84 88 76 85 81 81 86 85 87 68 80 85 77 63 63 Engine 4 | . 13 14 10 11 11 11 4 15 15 2 5 1 . . . . . . . . . . . . . Reactor 3 | . . . . . . . . . . . . 9 7 6 5 6 6 6 5 5 5 5 5 5 5 Treads 12 | . 13 14 11 11 11 10 22 23 23 22 23 17 7 13 9 6 6 6 5 7 5 . 4 4 5 Leg 5 | . . . . . . . . . . . . 5 15 13 12 13 13 13 11 5 9 21 10 11 11 Wheel 3 | . 13 13 10 11 11 11 4 . . . . . . . . 1 6 6 5 2 . . . . . Device 13 | . 10 14 11 22 22 22 12 15 15 4 15 11 7 7 12 13 13 13 15 5 21 11 9 5 5 Storage 10 | . 14 14 11 11 11 11 9 7 7 7 7 9 15 13 13 13 13 13 11 11 11 11 11 11 11 Processor 8 | . . . 11 11 11 11 11 7 7 15 15 5 . 14 6 6 6 6 6 7 8 11 9 5 5 Hackware 1 | . . . . . . . 1 7 7 7 7 2 . . . . . . . . . . . . . Protection 5 | . . . 9 . . . 8 6 7 2 . 8 7 3 6 6 6 6 10 6 2 8 9 5 4 Energy Gun 3 | . 20 26 . . . . 10 14 15 2 . . . . . . . . . . . . . . . Energy Cannon 6 | . . . . . . . . . . 5 . 10 15 13 12 13 13 12 11 11 10 10 11 11 10 Ballistic Gun 4 | . 7 1 21 22 22 22 7 . . . 2 . . . . . . . . . . . . . . Naked Turns . | . . . . . . . . . . . . . . . . . . . . . . . . . . Heaviest Build 197 | 12 92 92 98 97 97 97 101 116 118 118 97 165 160 161 161 161 161 161 167 197 161 165 197 197 197 Greatest Support 140 | 20 20 40 40 10 10 10 60 60 60 66 74 74 60 60 60 60 60 60 60 140 140 100 100 80 60 Greatest Overweight (x) 30 | . 30 9 9 9 9 9 9 1 1 28 1 2 2 2 2 2 2 2 2 3 5 2 2 6 3 Average Overweight (x) 3 | . 8 6 8 9 9 9 2 1 1 1 1 1 2 2 1 2 2 2 2 1 2 1 1 3 3 Largest Inventory Capacity 25 | . 25 25 25 25 25 25 25 25 25 25 25 25 25 25 25 25 25 25 25 25 25 25 25 25 25 Average Capacity 24 | . 24 25 25 25 25 25 25 25 25 25 25 25 25 25 25 25 25 25 25 25 25 25 25 25 25 Most Carried 25 | . 21 25 25 25 25 25 25 25 25 25 25 25 25 25 24 25 25 24 25 25 25 25 25 22 22 Average Carried 23 | . 13 24 24 24 25 24 24 24 24 22 24 24 24 24 22 24 25 23 23 24 22 21 24 22 21 Final Capacity 25 | 8 25 25 25 25 25 25 25 25 25 25 25 25 25 25 25 25 25 25 25 25 25 25 25 25 25 Final Carried 25 | 6 21 21 24 25 25 24 25 25 25 22 24 25 25 24 23 25 25 24 23 25 25 23 22 22 21 Class Distribution -------------------- 44% | Golem 26% | Mutant 20% | Scavenger-Mutant 6% | Derelict-Mutant Dominant Class ---------------- Mutant | -10/Materials Scavenger-Mutant | -10/Mines Mutant | -9/Materials Mutant | -9/Mines Mutant | -9/Exiles Mutant | -8/Mines Scavenger-Mutant | -8/Materials Mutant | -7/Factory Scavenger-Mutant | -7/Lower Caves Mutant | -7/Lower Caves Derelict-Mutant | -7/Zion Scavenger-Mutant | -7/Deep Caves Golem | -6/Proximity Caves Golem | -6/Factory Golem | -6/Lower Caves Golem | -6/Lower Caves Golem | -6/Data Miner Golem | -5/Proximity Caves Golem | -5/Factory Golem | -5/Waste Golem | -5/Factory Golem | -5/Extension Golem | -5/Cetus Golem | -5/Archives Golem | -5/Hub_04(d) Resources | -11 -10 -10 -9 -9 -9 -8 -8 -7 -7 -7 -7 -7 -6 -6 -6 -6 -6 -5 -5 -5 -5 -5 -5 -5 -5 ----------- Run | Jun Mat Min Mat Min Exi Min Mat Fac Low Low Zio Dee Pro Fac Low Low Dat Pro Fac Was Fac Ext Cet Arc Hub Matter Collected 5536 | 200 345 67 1058 306 39 171 699 60 80 192 63 907 29 80 147 12 . 30 30 116 551 174 114 57 9 Remotely 74 | . . . . . . . . . . . . 74 . . . . . . . . . . . . . Salvage Created 17631 | . 839 281 1643 425 . 198 1370 201 50 645 . 912 51 776 472 53 . 169 176 1771 4475 1738 385 382 619 Parts 814 | . 70 11 103 31 . 11 76 18 3 20 . 34 4 31 23 2 . 9 3 28 202 73 24 15 23 Haulers Intercepted 16 | . 2 . 5 . . . 5 . . . . . . 1 . . . . 1 . 2 . . . . Recyclers Shooed 4 | . . . . . . 1 1 . . . . . . . . . . . . . 2 . . . . Parts Field Recycled . | . . . . . . . . . . . . . . . . . . . . . . . . . . Retrieved Matter . | . . . . . . . . . . . . . . . . . . . . . . . . . . Parts Self-Destructed 36 | . . . . . . . . . 3 5 . . 4 . 19 1 . 4 . . . . . . . Prevented 2 | . . . . . . . . . . 2 . . . . . . . . . . . . . . . Kills | -11 -10 -10 -9 -9 -9 -8 -8 -7 -7 -7 -7 -7 -6 -6 -6 -6 -6 -5 -5 -5 -5 -5 -5 -5 -5 ------- Run | Jun Mat Min Mat Min Exi Min Mat Fac Low Low Zio Dee Pro Fac Low Low Dat Pro Fac Was Fac Ext Cet Arc Hub Combat Hostiles Destroyed 315 | . 18 4 34 11 . 4 29 4 1 16 . 48 1 8 14 1 . 6 1 6 69 21 8 4 7 Melee 4 | . . . . . . . . . . 2 . . . . 1 . . . . . 1 . . . . Guns 91 | . 15 4 31 9 . 4 22 4 1 1 . . . . . . . . . . . . . . . Cannons 116 | . . . . . . . . . . . . . 1 8 5 1 . 2 1 6 53 20 8 4 7 AOE 97 | . 3 . 3 2 . . 6 . . 11 . 45 . . 8 . . 4 . . 15 . . . . Classes Destroyed 25 | . 6 2 2 2 . 1 1 1 . 3 . 4 . . 1 . . . . 1 1 . . . . Worker 17 | . . . 5 . . . 3 . . . . . . . . . . . . . 6 . . . 3 Builder 8 | . 1 . . . . . 1 1 . . . . . . . . . . . . 3 2 . . . Tunneler 3 | . . . . 1 . . . 1 . . . . . . . . . . . . 1 . . . . Hauler 16 | . 2 . 5 . . . 5 . . . . . . 1 . . . . 1 . 2 . . . . Recycler 7 | . . 1 . . . . . . . . . . . 1 . . . . . . 4 1 . . . Mechanic 3 | . . . 1 . . . . . . . . . . . . . . . . . 2 . . . . Operator 4 | . 2 . . . . . 1 . . . . . . . . . . . . . . . . . 1 Watcher 17 | . 3 . 4 . . . 3 . . . . . . 1 . . . . . . 5 . 1 . . Swarmer 56 | . 3 . 10 3 . . 11 . . 3 . . . . 5 . . 4 . . 14 . 3 . . Saboteur 1 | . . . . . . . . . . . . . . . . . . . . . 1 . . . . Grunt 119 | . 15 2 17 7 . 3 12 1 1 4 . . . 5 7 . . 2 . . 31 8 2 . 2 Brawler 6 | . . . . 1 . . 1 . . 2 . . . . . . . . . . 1 1 . . . Duelist 6 | . . . . . . . . . . 3 . . . . . . . . . . 1 2 . . . Protector 4 | . . . . . . . . . . 1 . . . . . . . . . . 1 1 . . 1 Sentry 34 | . . 2 7 . . . 4 1 . 1 . . . 1 1 . . . . . 3 8 . 4 2 Hunter 13 | . . . . . . 1 . . . . . . 1 1 . 1 . . 1 . 8 . . . . Programmer 15 | . . . . . . . . 2 . 1 . . . 1 . . . . . . 9 . 2 . . Heavy 1 | . . . . . . . 1 . . . . . . . . . . . . . . . . . . Behemoth 2 | . . . . . . . . . . . . . . . 1 . . . . . . 1 . . . Compactor 6 | . . . . . . . . . . . . . . . . . . . . 6 . . . . . Enhanced Grunt 2 | . . . . . . . . . . . . 2 . . . . . . . . . . . . . Lightning 2 | . . . . . . . . . . . . . . . . . . . . . . . . . 2 Z-Light 7 | . . . . . . . . . . . . 7 . . . . . . . . . . . . . Assembler 2 | . . . . . . . . . . . . 2 . . . . . . . . . . . . . Assembled 37 | . . . . . . . . . . . . 37 . . . . . . . . . . . . . Golem 3 | . . . . . . . . . . . . 3 . . . . . . . . . . . . . Thug 1 | . . . . . . . . . . . . . . . . . . . . . . 1 . . . Guerrilla 1 | . . . . . . . . . . . . . . . . . . . . . . . 1 . . Mutant 1 | . . . . . . . . . . 1 . . . . . . . . . . . . . . . Best Kill Streak 37 | . 3 3 7 3 . 2 8 1 1 12 . 37 1 3 9 1 . 4 1 2 10 6 5 1 2 Combat Bots Only 35 | . 3 2 6 3 . 2 8 1 1 12 . 35 1 3 9 1 . 4 1 2 10 6 5 1 2 Max Kills in Single Turn 32 | . 3 1 2 2 . 1 3 1 1 4 . 32 1 2 2 1 . 4 1 1 5 2 1 1 2 Gunslinging 1 | . . . 1 1 . . 1 . . . . . . . . . . . . . . . . . . Exploded 31 | . 3 . 2 2 . . 3 . . 4 . 31 . . 2 . . 4 . . 5 . . . . Melee 1 | . . . . . . . . . . 1 . . . . 1 . . . . . 1 . . . . Uniques/NPCs Destroyed 1 | . . . . . . . . . . . . 1 . . . . . . . . . . . . . Z-Imprinter (-7/Deep Caves) Combat | -11 -10 -10 -9 -9 -9 -8 -8 -7 -7 -7 -7 -7 -6 -6 -6 -6 -6 -5 -5 -5 -5 -5 -5 -5 -5 -------- Run | Jun Mat Min Mat Min Exi Min Mat Fac Low Low Zio Dee Pro Fac Low Low Dat Pro Fac Was Fac Ext Cet Arc Hub Damage Taken 20501 | . 532 203 1144 270 . 461 1822 298 32 1617 . 1760 . 484 1548 151 . 92 185 . 5911 2249 173 445 1124 Core 2411 | . 69 24 146 31 . 53 265 44 . 301 . 296 . 11 96 23 . 18 22 . 542 294 11 51 114 Absorbed by Shields 801 | . . . . . . . . . . . . . . . . . . . . . 523 194 84 . . Reduced by Siege Mode 279 | . . . . . . . . . . . . . . . . . . . . . 226 . 13 . 40 Redirected to Shielding 119 | . . . . . . . . . . . . 119 . . . . . . . . . . . . . Regen/Repaired (Parts) 126 | . 126 . . . . . . . . . . . . . . . . . . . . . . . . Core Remaining (%) 57 | 100 . 62 . . . 42 51 . . . . . 8 . . . . 82 . . . . . . . Volleys Fired 949 | . 77 15 108 20 . 21 85 12 1 15 . 113 8 39 21 12 . 6 15 42 190 66 21 14 48 Largest 2 | . 2 2 2 2 . 2 2 2 2 2 . 2 2 2 2 2 . 2 2 2 2 2 2 2 2 Hottest 160 | . 130 130 46 46 . 46 160 160 160 160 . 126 50 50 50 50 . 50 50 50 115 50 50 50 50 Shots Fired 1670 | . 145 27 214 39 . 42 168 24 3 19 . 127 16 63 36 24 . 11 21 79 331 119 41 26 95 Gun 661 | . 144 27 212 38 . 42 165 24 3 6 . . . . . . . . . . . . . . . Cannon 874 | . . . . . . . . . . 9 . 17 16 63 30 24 . 10 21 79 326 119 41 26 93 Launcher 42 | . 1 . 2 1 . . 3 . . 4 . 17 . . 6 . . 1 . . 5 . . . 2 Special 93 | . . . . . . . . . . . . 93 . . . . . . . . . . . . . Kinetic 486 | . 72 4 212 38 . 42 118 . . . . . . . . . . . . . . . . . . Thermal 1125 | . 72 23 . . . . 47 24 3 15 . 93 16 63 30 24 . 10 21 79 326 119 41 26 93 Explosive 42 | . 1 . 2 1 . . 3 . . 4 . 17 . . 6 . . 1 . . 5 . . . 2 Electromagnetic 17 | . . . . . . . . . . . . 17 . . . . . . . . . . . . . Robot Hit Streak 31 | . 11 16 10 31 . 27 30 8 2 5 . 15 3 17 12 3 . 7 7 17 21 20 16 19 18 Robot Miss Streak 8 | . 8 1 4 1 . 1 4 3 1 5 . 6 1 1 1 1 . 1 3 1 5 1 1 1 2 Penetration Max . | . . . . . . . . . . . . . . . . . . . . . . . . . . Secondary Targets 7 | . 1 . 2 1 . . 3 . . . . . . . . . . . . . . . . . . Max Gunslinging Chain 1 | . 1 . 1 1 . . 1 . . . . . . . . . . . . . . . . . . Shots Hit Robots 1157 | . 93 21 144 33 . 38 142 20 2 22 . 80 3 29 31 5 . 8 7 63 198 94 28 21 75 Core Hits 801 | . 40 10 60 17 . 12 77 16 3 53 . 185 1 15 33 1 . 9 2 14 148 42 12 8 43 Critical Kills . | . . . . . . . . . . . . . . . . . . . . . . . . . . Critical Parts Destroyed 4 | . 1 . 2 . . . . . . . . 1 . . . . . . . . . . . . . Critical Strikes 10 | . 3 1 2 . . . . . . . . 4 . . . . . . . . . . . . . Burn 3 | . 2 1 . . . . . . . . . . . . . . . . . . . . . . . Destroy 3 | . 1 . 2 . . . . . . . . . . . . . . . . . . . . . . Smash 1 | . . . . . . . . . . . . 1 . . . . . . . . . . . . . Sever 3 | . . . . . . . . . . . . 3 . . . . . . . . . . . . . Melee Attacks 57 | . . . 2 . . . . 1 . 13 22 13 . . 6 . . . . . . . . . . Impact 54 | . . . . . . . . . . 13 22 13 . . 6 . . . . . . . . . . Slashing 1 | . . . . . . . . 1 . . . . . . . . . . . . . . . . . Piercing . | . . . . . . . . . . . . . . . . . . . . . . . . . . Sneak Attacks 5 | . . . 2 . . . . . . 3 . . . . . . . . . . . . . . . Combat Hostiles . | . . . . . . . . . . . . . . . . . . . . . . . . . . Follow-up Attacks . | . . . . . . . . . . . . . . . . . . . . . . . . . . Damage Inflicted 45255 | . 1305 333 2457 594 . 517 2832 423 44 2244 . 5010 124 1405 2203 241 . 499 304 2659 11384 4247 1365 993 4072 Guns 7694 | . 1175 310 2274 494 . 514 2399 393 44 91 . . . . . . . . . . . . . . . Cannons 26239 | . . . . . . . . . . 154 . 313 124 1396 1215 241 . 294 304 2659 9624 4247 1365 993 3310 Explosions 9932 | . 130 . 170 100 . . 433 . . 1463 . 4091 . . 834 . . 205 . . 1744 . . . 762 Melee 855 | . . . . . . . . . . 536 . 165 . . 154 . . . . . . . . . . Ramming 94 | . . 23 13 . . 3 . 30 . . . . . 9 . . . . . . 16 . . . . Kinetic 5347 | . 539 40 2274 494 . 514 1486 . . . . . . . . . . . . . . . . . . Thermal 28847 | . 636 270 56 . . . 913 393 44 245 . 441 124 1396 1215 241 . 294 304 2659 9701 4247 1365 993 3310 Explosive 9799 | . 130 . 114 100 . . 433 . . 1463 . 4091 . . 834 . . 205 . . 1667 . . . 762 Electromagnetic 313 | . . . . . . . . . . . . 313 . . . . . . . . . . . . . Impact 855 | . . . . . . . . . . 536 . 165 . . 154 . . . . . . . . . . Slashing . | . . . . . . . . . . . . . . . . . . . . . . . . . . Piercing . | . . . . . . . . . . . . . . . . . . . . . . . . . . Highest Corruption 32 | . . . 3 3 3 3 2 1 1 32 32 . . . . . . . . 13 25 25 25 25 29 Average Corruption 11 | . . . 2 3 3 3 2 1 1 1 32 . . . . . . . . 11 17 25 25 25 26 Corruption Purged . | . . . . . . . . . . . . . . . . . . . . . . . . . . Corruption Blocked . | . . . . . . . . . . . . . . . . . . . . . . . . . . Effects 405 | . . . 1 16 12 9 18 . 4 15 13 . . . . . . . . 35 136 78 36 14 18 Message Errors 98 | . . . . 6 2 3 5 . . 3 2 . . . . . . . . 13 28 18 8 4 6 Matter Fused 86 | . . . . 4 4 1 2 . . 3 2 . . . . . . . . 10 26 19 9 2 4 Heat Flow Errors 49 | . . . . 1 1 1 5 . 1 3 1 . . . . . . . . 1 18 12 3 . 2 Energy Discharges 51 | . . . 1 2 4 2 1 . 1 4 4 . . . . . . . . 3 16 6 3 3 1 Parts Rejected 8 | . . . . . . . . . . . . . . . . . . . . . 3 2 2 1 . Data Loss (minor) 51 | . . . . 1 1 1 2 . 1 1 2 . . . . . . . . 6 20 11 4 1 . Data Loss (major) 15 | . . . . 2 . . 1 . . . 2 . . . . . . . . . 4 1 3 . 2 Misfires 14 | . . . . . . . 1 . 1 . . . . . . . . . . . 8 2 . . 2 Alerts 13 | . . . . . . 1 1 . . 1 . . . . . . . . . 1 6 1 1 1 . Misdirections 5 | . . . . . . . . . . . . . . . . . . . . . 1 2 2 . . Weapon Failures 15 | . . . . . . . . . . . . . . . . . . . . 1 6 4 1 2 1 Overload Shots . | . . . . . . . . . . . . . . . . . . . . . . . . . . Overflow Damage 1500 | . . 3 46 . . . . . . 243 . 155 . 19 92 17 . 15 20 16 604 94 73 10 93 Projectiles 956 | . . . . . . . . . . 12 . . . 19 27 17 . 15 20 16 560 94 73 10 93 Explosions 302 | . . . 46 . . . . . . 41 . 106 . . 65 . . . . . 44 . . . . Melee 242 | . . 3 . . . . . . . 190 . 49 . . . . . . . . . . . . . Knockbacks 4 | . . . . . . . . . . 1 . 3 . . . . . . . . . . . . . Impact 4 | . . . . . . . . . . 1 . 3 . . . . . . . . . . . . . Kinetic . | . . . . . . . . . . . . . . . . . . . . . . . . . . Secondary . | . . . . . . . . . . . . . . . . . . . . . . . . . . Self-Inflicted Damage 937 | . . 11 6 . . . 80 30 . 419 . 88 . . 164 . . . . . 139 . . . . Shots 31 | . . . . . . . 2 . . 17 . 4 . . 4 . . . . . 4 . . . . Rammed 6 | . . 1 4 . . 1 . . . . . . . . . . . . . . . . . . . Targets Rammed 10 | . . 1 4 . . 1 . . . . . . . 1 . . . . . . 3 . . . . Kicked 4 | . . . . . . . . . . . . . . 1 . . . . . . 3 . . . . Crushed . | . . . . . . . . . . . . . . . . . . . . . . . . . . Highest Temperature 515 | . 234 261 4 258 193 152 377 173 207 265 205 515 . 13 94 . . . . 286 253 232 228 14 274 Average Temperature 84 | . 56 96 2 135 115 69 99 60 74 67 127 147 . 4 25 . . . . 165 76 82 109 9 97 Received Heat Transfer 5256 | . 264 78 393 123 . 144 666 21 18 213 . 308 . 87 390 . . 27 . . 1401 705 4 54 360 Effects 5 | . . . . . . . 1 . . 1 . 3 . . . . . . . . . . . . . Shutdowns 3 | . . . . . . . 1 . . . . 2 . . . . . . . . . . . . . Energy Bleed 1 | . . . . . . . . . . 1 . . . . . . . . . . . . . . . Short Circuit 1 | . . . . . . . . . . . . 1 . . . . . . . . . . . . . Siege Activations 20 | . . . . . . . . . . . . . . . . . . . . . 14 . 3 2 1 Total Turns 411 | . . . . . . . . . . . . . . . . . . . . . 216 . 29 38 128 Longest Duration 128 | . . . . . . . . . . . . . . . . . . . . . 30 . 16 30 128 Robots Corrupted 2 | . . . . . . . . . . . . 2 . . . . . . . . . . . . . Combat Hostiles 2 | . . . . . . . . . . . . 2 . . . . . . . . . . . . . Parts Fried 1 | . . . . . . . . . . . . . . . . . . . . . . . 1 . . Impact Corruptions 10 | . . 1 . . . . . . . 7 . 2 . . . . . . . . . . . . . Robots Melted 2 | . . . . . . . 1 . . . . . . . . . . . . . . 1 . . . Combat Hostiles 2 | . . . . . . . 1 . . . . . . . . . . . . . . 1 . . . Parts Melted 29 | . 3 3 . . . . 8 2 . . . . . . 1 . . . . . 5 3 . . 4 Heat Transferred 21645 | . 1628 740 50 . . . 2050 850 100 500 . 2220 75 800 650 125 . 175 175 1575 4721 2399 750 550 1512 Parts Sabotaged 3 | . . . . . . . . . . . . . . . . . . . . . 3 . . . . Parts Stolen . | . . . . . . . . . . . . . . . . . . . . . . . . . . Parts Stripped . | . . . . . . . . . . . . . . . . . . . . . . . . . . Power Chain Reactions 2 | . . . . . . . . . . . . . . . . . . . . . 2 . . . . Missiles Intercepted . | . . . . . . . . . . . . . . . . . . . . . . . . . . Alert | -11 -10 -10 -9 -9 -9 -8 -8 -7 -7 -7 -7 -7 -6 -6 -6 -6 -6 -5 -5 -5 -5 -5 -5 -5 -5 ------- Run | Jun Mat Min Mat Min Exi Min Mat Fac Low Low Zio Dee Pro Fac Low Low Dat Pro Fac Was Fac Ext Cet Arc Hub Peak Influence 1892 | . 260 85 485 311 . 60 381 156 . . . . . 254 . . . . 188 118 1892 1824 1487 707 634 Initial 1100 | . . . 33 124 . . 11 105 . . . . . 18 . . . . . 65 . 1100 1020 594 247 Average 383 | . 76 9 271 158 . 16 161 67 . . . . . 120 . . . . 62 45 702 1331 1334 638 421 Maximum Alert Level 5 | . 1 . 2 1 . . 1 . . . . . . 1 . . . . . . 5 5 4 3 2 Low Security (%) 57 | . 92 100 26 66 . 100 67 100 . . . . . 80 . . . . 100 100 28 . . . . Level 1 17 | . 7 . 68 33 . . 32 . . . . . . 19 . . . . . . 14 . . . 51 Level 2 5 | . . . 5 . . . . . . . . . . . . . . . . . 13 . . 77 48 Level 3 2 | . . . . . . . . . . . . . . . . . . . . . 7 1 5 22 . Level 4 15 | . . . . . . . . . . . . . . . . . . . . . 27 79 94 . . Level 5 1 | . . . . . . . . . . . . . . . . . . . . . 1 19 . . . High Security 1 | . . . . . . . . . . . . . . . . . . . . . 6 . . . . Max Security . | . . . . . . . . . . . . . . . . . . . . . . . . . . Squads Dispatched 56 | . 5 . 5 . . . 3 3 . 1 . . . 6 . . . . 3 . 22 5 . . 3 Investigation 11 | . 3 . 4 . . . . 1 . . . . . . . . . . 1 . 1 . . . 1 Extermination 10 | . . . . . . . . 2 . . . . . 2 . . . . 1 . 5 . . . . Reinforcement 12 | . 2 . 1 . . . 3 . . . . . . 2 . . . . . . 1 2 . . 1 Assault 23 | . . . . . . . . . . 1 . . . 2 . . . . 1 . 15 3 . . 1 Garrison . | . . . . . . . . . . . . . . . . . . . . . . . . . . Intercept . | . . . . . . . . . . . . . . . . . . . . . . . . . . Searches Triggered . | . . . . . . . . . . . . . . . . . . . . . . . . . . Data Miner Redirects 3 | . . . . . . . . . . . . . . . . . . . . . 2 1 . . . Construction Impeded 2 | . . . . . . . . . . . . . . 1 . . . . . . . . . . 1 Haulers Reinforced 1 | . . . . . . . . . . . . . . . . . . . . . 1 . . . . Active Scanning Responses . | . . . . . . . . . . . . . . . . . . . . . . . . . . Cargo Convoy Interrupts . | . . . . . . . . . . . . . . . . . . . . . . . . . . Stealth | -11 -10 -10 -9 -9 -9 -8 -8 -7 -7 -7 -7 -7 -6 -6 -6 -6 -6 -5 -5 -5 -5 -5 -5 -5 -5 --------- Run | Jun Mat Min Mat Min Exi Min Mat Fac Low Low Zio Dee Pro Fac Low Low Dat Pro Fac Was Fac Ext Cet Arc Hub Distress Signals 14 | . 3 . 5 . . 1 . . . . . . . . . . . . . . 1 2 2 . . Communications Jammed 54 | . . . . . . . . . . . . . . . . . . . . . 54 . . . . Distress Signals 54 | . . . . . . . . . . . . . . . . . . . . . 54 . . . . Times Spotted 453 | . 34 7 53 12 . 4 35 5 1 16 . 49 1 10 15 1 . 6 2 6 105 48 23 6 14 Peak Tracking Total 37 | . 4 2 5 3 . 2 7 2 1 8 . 37 1 2 10 1 . 4 1 4 19 9 6 1 11 Tactical Retreats 23 | . . 2 1 1 . . . 1 . 1 . 4 . . 1 . . . . . 6 3 2 . 1 Traps | -11 -10 -10 -9 -9 -9 -8 -8 -7 -7 -7 -7 -7 -6 -6 -6 -6 -6 -5 -5 -5 -5 -5 -5 -5 -5 ------- Run | Jun Mat Min Mat Min Exi Min Mat Fac Low Low Zio Dee Pro Fac Low Low Dat Pro Fac Was Fac Ext Cet Arc Hub Traps Triggered 19 | . 6 . 2 . . . . 1 . . . . . 1 . . . . 3 . 3 3 . . . Indirectly . | . . . . . . . . . . . . . . . . . . . . . . . . . . Trap Hack Attempts 59 | . . . 59 . . . . . . . . . . . . . . . . . . . . . . Triggered 1 | . . . 1 . . . . . . . . . . . . . . . . . . . . . . Disarmed . | . . . . . . . . . . . . . . . . . . . . . . . . . . Reprogrammed 4 | . . . 4 . . . . . . . . . . . . . . . . . . . . . . Reused 2 | . . . 1 . . . . . . . . . . . . . . . . . 1 . . . . Traps Reconfigurated 3 | . . . . . . . . . . . . . . . . . . . . . 3 . . . . Traps Extracted 4 | . . . 4 . . . . . . . . . . . . . . . . . . . . . . Installed 4 | . . . 3 . . . 1 . . . . . . . . . . . . . . . . . . Triggered 2 | . . . 1 . . . . . . . . . . . . . . . . . 1 . . . . Most Traps Carried 5 | . . 4 5 5 5 5 5 4 4 4 4 4 4 4 4 4 4 4 4 4 4 4 4 . . Machines | -11 -10 -10 -9 -9 -9 -8 -8 -7 -7 -7 -7 -7 -6 -6 -6 -6 -6 -5 -5 -5 -5 -5 -5 -5 -5 ---------- Run | Jun Mat Min Mat Min Exi Min Mat Fac Low Low Zio Dee Pro Fac Low Low Dat Pro Fac Was Fac Ext Cet Arc Hub Machines Disabled 33 | . . . 1 1 . . 2 . . . . 3 . 3 4 . . . 1 . 12 1 3 1 1 Max in Single Turn 2 | . . . 1 1 . . 2 . . . . 1 . 2 2 . . . . . 2 1 1 . 1 Garrison Access 4 | . . . . . . . . . . . . . . 2 . . . . 1 . . . . . 1 Network Hub 1 | . . . . . . . . . . . . . . . . . . . . . . . . . 1 Machines Repaired 1 | . . . . . . . . . . . . . . . . . . . . . . . . . 1 Machines Sabotaged . | . . . . . . . . . . . . . . . . . . . . . . . . . . Overloaded Fab Kills . | . . . . . . . . . . . . . . . . . . . . . . . . . . Hacking | -11 -10 -10 -9 -9 -9 -8 -8 -7 -7 -7 -7 -7 -6 -6 -6 -6 -6 -5 -5 -5 -5 -5 -5 -5 -5 --------- Run | Jun Mat Min Mat Min Exi Min Mat Fac Low Low Zio Dee Pro Fac Low Low Dat Pro Fac Was Fac Ext Cet Arc Hub Machines Accessed 47 | . 8 . 10 1 2 . 5 1 1 . 1 . . 1 . . 4 . 3 . 7 2 . . 1 Terminals 25 | . 5 . 6 . . . 4 . . . . . . . . . . . 3 . 5 1 . . 1 Fabricators . | . . . . . . . . . . . . . . . . . . . . . . . . . . Repair Stations 1 | . 1 . . . . . . . . . . . . . . . . . . . . . . . . Recycling Units 7 | . 2 . 2 . . . . 1 . . . . . . . . . . . . 1 1 . . . Scanalyzers 3 | . . . 2 . . . . . . . . . . . . . . . . . 1 . . . . Garrison Access 2 | . . . . . . . 1 . . . . . . 1 . . . . . . . . . . . Total Hacks 123 | . 22 . 25 1 2 . 20 1 1 . 1 . . 1 . . 27 . 7 . 12 2 . . 1 Successful 75 | . 12 . 14 1 2 . 10 1 1 . 1 . . . . . 27 . . . 3 2 . . 1 Failed 48 | . 10 . 11 . . . 10 . . . . . . 1 . . . . 7 . 9 . . . . Catastrophic 15 | . 3 . 4 . . . 2 . . . . . . 1 . . . . 2 . 3 . . . . Database Lockouts . | . . . . . . . . . . . . . . . . . . . . . . . . . . Manual 41 | . 8 . 15 . . . 12 . . . 2 . . . . . . . . . 2 . 1 . 1 Terminals 64 | . 14 . 15 . . . 18 . . . . . . . . . . . 7 . 8 1 . . 1 Fabricators . | . . . . . . . . . . . . . . . . . . . . . . . . . . Repair Stations 4 | . 4 . . . . . . . . . . . . . . . . . . . . . . . . Recycling Units 11 | . 4 . 2 . . . . 1 . . . . . . . . . . . . 3 1 . . . Scanalyzers 9 | . . . 8 . . . . . . . . . . . . . . . . . 1 . . . . Garrison Access 3 | . . . . . . . 2 . . . . . . 1 . . . . . . . . . . . Terminal Hacks 52 | . 4 . 5 1 2 . 8 . 1 . 1 . . . . . 27 . . . 2 1 . . . Record 14 | . . . . . 2 . . . . . . . . . . . 11 . . . 1 . . . . Part Schematic 10 | . . . . . . . . . . . 1 . . . . . 9 . . . . . . . . Robot Schematic 4 | . . . . . . . . . . . . . . . . . 4 . . . . . . . . Robot Analysis 3 | . 3 . . . . . . . . . . . . . . . . . . . . . . . . Prototype ID Bank 6 | . . . . . . . 3 . . . . . . . . . 3 . . . . . . . . Open Door 2 | . . . . 1 . . . . 1 . . . . . . . . . . . . . . . . Branch Access Points 2 | . . . . . . . 1 . . . . . . . . . . . . . 1 . . . . Terminal Index 1 | . . . . . . . . . . . . . . . . . . . . . . 1 . . . Alert Level 3 | . . . 2 . . . 1 . . . . . . . . . . . . . . . . . . Unreport Threat 5 | . 1 . 2 . . . 2 . . . . . . . . . . . . . . . . . . Assault Status 1 | . . . . . . . 1 . . . . . . . . . . . . . . . . . . Zone Layout 1 | . . . 1 . . . . . . . . . . . . . . . . . . . . . . Fabricator Hacks . | . . . . . . . . . . . . . . . . . . . . . . . . . . Repair Station Hacks 4 | . 4 . . . . . . . . . . . . . . . . . . . . . . . . Scan Component 2 | . 2 . . . . . . . . . . . . . . . . . . . . . . . . Repair 2 | . 2 . . . . . . . . . . . . . . . . . . . . . . . . Recycling Unit Hacks 5 | . 2 . . . . . . 1 . . . . . . . . . . . . 1 1 . . . Retrieve Components 5 | . 2 . . . . . . 1 . . . . . . . . . . . . 1 1 . . . Scanalyzer 5 | . . . 5 . . . . . . . . . . . . . . . . . . . . . . Insert Component 2 | . . . 2 . . . . . . . . . . . . . . . . . . . . . . Analyze 3 | . . . 3 . . . . . . . . . . . . . . . . . . . . . . Garrison Access Hacks . | . . . . . . . . . . . . . . . . . . . . . . . . . . Unauthorized Hacks 9 | . 2 . 4 . . . 2 . . . . . . . . . . . . . . . . . 1 Terminals 4 | . . . 1 . . . 2 . . . . . . . . . . . . . . . . . 1 Botnet 2 | . . . 1 . . . 1 . . . . . . . . . . . . . . . . . . Operators 1 | . . . . . . . 1 . . . . . . . . . . . . . . . . . . Sabotage 1 | . . . . . . . . . . . . . . . . . . . . . . . . . 1 Fabricators . | . . . . . . . . . . . . . . . . . . . . . . . . . . Repair Stations . | . . . . . . . . . . . . . . . . . . . . . . . . . . Recycling Units 4 | . 2 . 2 . . . . . . . . . . . . . . . . . . . . . . Tunnel 4 | . 2 . 2 . . . . . . . . . . . . . . . . . . . . . . Scanalyzers 1 | . . . 1 . . . . . . . . . . . . . . . . . . . . . . Extract 1 | . . . 1 . . . . . . . . . . . . . . . . . . . . . . Garrison Access . | . . . . . . . . . . . . . . . . . . . . . . . . . . Data Cores Recovered . | . . . . . . . . . . . . . . . . . . . . . . . . . . Used . | . . . . . . . . . . . . . . . . . . . . . . . . . . Hacking Detections 27 | . 5 . 6 . . . 5 . . . . . . 1 . . . . 3 . 5 1 1 . . Full Trace Events 4 | . 1 . 1 . . . . . . . . . . . . . . . 1 . 1 . . . . Feedback Events . | . . . . . . . . . . . . . . . . . . . . . . . . . . Feedback Blocked . | . . . . . . . . . . . . . . . . . . . . . . . . . . Robot Schematics Acquired 8 | . . . . . . . . . . . 4 . . . . . 4 . . . . . . . . Robots Built . | . . . . . . . . . . . . . . . . . . . . . . . . . . Authchips . | . . . . . . . . . . . . . . . . . . . . . . . . . . Time . | . . . . . . . . . . . . . . . . . . . . . . . . . . Total Robot Build Rating . | . . . . . . . . . . . . . . . . . . . . . . . . . . Part Schematics Acquired 28 | . . . 4 . . . . . . . 15 . . . . . 9 . . . . . . . . Parts Built . | . . . . . . . . . . . . . . . . . . . . . . . . . . Authchips . | . . . . . . . . . . . . . . . . . . . . . . . . . . Time . | . . . . . . . . . . . . . . . . . . . . . . . . . . Total Part Build Rating . | . . . . . . . . . . . . . . . . . . . . . . . . . . Parts Repaired 2 | . 2 . . . . . . . . . . . . . . . . . . . . . . . . Time 52 | . 52 . . . . . . . . . . . . . . . . . . . . . . . . Parts Recycled . | . . . . . . . . . . . . . . . . . . . . . . . . . . Recycled Matter . | . . . . . . . . . . . . . . . . . . . . . . . . . . Retrieved Matter . | . . . . . . . . . . . . . . . . . . . . . . . . . . Retrieved Components 22 | . 1 . . . . . . 1 . . . . . . . . . . . . 10 10 . . . Parts Scanalyzed 2 | . . . 2 . . . . . . . . . . . . . . . . . . . . . . Part Schematics Acquired 2 | . . . 2 . . . . . . . . . . . . . . . . . . . . . . Parts Damaged . | . . . . . . . . . . . . . . . . . . . . . . . . . . Bothacking | -11 -10 -10 -9 -9 -9 -8 -8 -7 -7 -7 -7 -7 -6 -6 -6 -6 -6 -5 -5 -5 -5 -5 -5 -5 -5 ------------ Run | Jun Mat Min Mat Min Exi Min Mat Fac Low Low Zio Dee Pro Fac Low Low Dat Pro Fac Was Fac Ext Cet Arc Hub Used RIF Installer . | . . . . . . . . . . . . . . . . . . . . . . . . . . Robots Hacked 1 | . . . 1 . . . . . . . . . . . . . . . . . . . . . . Non-combat 1 | . . . 1 . . . . . . . . . . . . . . . . . . . . . . Combat . | . . . . . . . . . . . . . . . . . . . . . . . . . . Robot Hacks Applied 1 | . . . 1 . . . . . . . . . . . . . . . . . . . . . . parse_system 1 | . . . 1 . . . . . . . . . . . . . . . . . . . . . . Relay Couplers Released 7 | . . . . . . . . . . . . . . 3 . . . . 2 . . . . . 2 Machine Destruction 7 | . . . . . . . . . . . . . . 3 . . . . 2 . . . . . 2 Fabnet Peak Effective % . | . . . . . . . . . . . . . . . . . . . . . . . . . . Robots Rewired 18 | . . . . . . . . . . . . . . . . . . . . . . 18 . . . Allies Hacked 1 | . . . . . . . . . . . . . . . . . . . . . . . 1 . . Hacks Repelled . | . . . . . . . . . . . . . . . . . . . . . . . . . . Allies | -11 -10 -10 -9 -9 -9 -8 -8 -7 -7 -7 -7 -7 -6 -6 -6 -6 -6 -5 -5 -5 -5 -5 -5 -5 -5 -------- Run | Jun Mat Min Mat Min Exi Min Mat Fac Low Low Zio Dee Pro Fac Low Low Dat Pro Fac Was Fac Ext Cet Arc Hub Total Allies 29 | . . . . . . . . . . . 2 . . . . . . 1 . 1 . 25 . . . Largest Group 11 | . . . . . . . . . . . 2 2 . . . . . 1 1 1 . 11 11 1 . Highest-Rated Group 450 | . . . . . . . . . . . 192 192 . . . . . 96 96 31 . 450 450 34 . Highest-Rated Ally 159 | . . . . . . . . . . . 96 96 . . . . . 96 96 31 . 159 146 34 . Total Orders . | . . . . . . . . . . . . . . . . . . . . . . . . . . Ally Attacks 314 | . . . . . . . . . . . . 22 . . . . . 5 7 3 . 177 98 2 . Total Damage 6841 | . . . . . . . . . . . . 611 . . . . . 281 186 62 . 3387 2298 16 . Kills 53 | . . . . . . . . . . . . 9 . . . . . . 1 . . 25 18 . . Allies Corrupted . | . . . . . . . . . . . . . . . . . . . . . . . . . . Allies Melted . | . . . . . . . . . . . . . . . . . . . . . . . . . . Intel | -11 -10 -10 -9 -9 -9 -8 -8 -7 -7 -7 -7 -7 -6 -6 -6 -6 -6 -5 -5 -5 -5 -5 -5 -5 -5 ------- Run | Jun Mat Min Mat Min Exi Min Mat Fac Low Low Zio Dee Pro Fac Low Low Dat Pro Fac Was Fac Ext Cet Arc Hub Robot Analysis Total 3 | . 3 . . . . . . . . . . . . . . . . . . . . . . . . Derelict Logs Recovered 12 | . . 1 . 1 . . . . 1 1 2 . 1 . 1 1 . 3 . . . . . . . Drone Launches . | . . . . . . . . . . . . . . . . . . . . . . . . . . Drone Recoveries . | . . . . . . . . . . . . . . . . . . . . . . . . . . Decoded 0b10 Intel 1 | . . . . . . . . . . . . . . . . . . . 1 . . . . . . Emergency Access 1 | . . . . . . . . . . . . . . . . . . . 1 . . . . . . Exploration | -11 -10 -10 -9 -9 -9 -8 -8 -7 -7 -7 -7 -7 -6 -6 -6 -6 -6 -5 -5 -5 -5 -5 -5 -5 -5 ------------- Run | Jun Mat Min Mat Min Exi Min Mat Fac Low Low Zio Dee Pro Fac Low Low Dat Pro Fac Was Fac Ext Cet Arc Hub Turns Passed 30419 | . 2458 694 1715 990 811 637 1539 1001 837 1268 1952 3748 653 1239 1412 1044 164 1065 662 746 3023 1452 709 296 304 Spaces Moved 10663 | 1 984 301 571 425 378 261 523 367 337 464 761 1200 295 515 328 479 79 308 272 248 865 416 186 42 57 Core 4 | . 3 . . . . . . . . 1 . . . . . . . . . . . . . . . Treads 3436 | . 1 8 13 . . . 346 367 337 463 761 805 . . . . . . . 132 109 . 88 6 . Legs 4203 | 1 52 . . . . . . . . . . 395 295 515 328 479 79 308 272 116 756 416 98 36 57 Wheels 3020 | . 928 293 558 425 378 261 177 . . . . . . . . . . . . . . . . . . Hover . | . . . . . . . . . . . . . . . . . . . . . . . . . . Flight . | . . . . . . . . . . . . . . . . . . . . . . . . . . Fastest Speed 120 | 120 120 175 175 215 215 215 140 246 246 240 240 210 210 210 180 210 210 210 210 210 210 183 185 240 240 Average Speed 222 | 120 211 197 215 215 215 215 223 246 246 246 240 235 210 210 209 210 210 210 210 233 224 185 256 264 240 Slowest Speed 1550 | 120 1550 480 480 215 215 215 246 246 246 1450 240 326 210 210 210 210 210 210 210 240 320 226 320 330 240 Overloaded Moves . | . . . . . . . . . . . . . . . . . . . . . . . . . . Propulsion Burnouts . | . . . . . . . . . . . . . . . . . . . . . . . . . . Robots Hopped . | . . . . . . . . . . . . . . . . . . . . . . . . . . Cave-ins Triggered . | . . . . . . . . . . . . . . . . . . . . . . . . . . Exploration Rate (%) 56 | 2 97 63 61 90 88 62 51 11 58 62 82 87 51 15 56 65 69 46 8 88 34 74 66 72 13 Regions Visited 25 Branch Regions 17 Pre-discovered Areas 10 | . 2 . 2 1 . . . . 1 . 1 . . . 1 1 1 . . . . . . . . Known Exits Taken 9 | . . . 1 . . 1 1 1 1 . 1 . . 1 . . . 1 . . 1 . . . . Unknown Exits Taken 14 | 1 1 1 . 1 1 . . . . 1 . 1 1 . 1 1 1 . . . . 1 1 1 . Scrap Searched 28 | . . 1 . 1 . 1 . . 10 4 3 . 4 . 1 3 . . . . . . . . . Spaces Dug 156 | . . . 9 . . . 9 1 . 21 3 11 12 18 23 16 . 2 9 2 20 . . . . Terrain Destroyed 658 | . 8 . 25 12 . . 56 2 . 43 3 116 13 26 42 19 . 29 13 16 158 21 8 3 45 Melee 4 | . . . . . . . . 1 . . 3 . . . . . . . . . . . . . . Projectile 224 | . . . . . . . . . . 1 . . 13 26 4 19 . 3 13 16 82 21 8 3 15 AOE 429 | . 8 . 25 12 . . 56 . . 42 . 116 . . 38 . . 26 . . 76 . . . 30 Terrain Rammed 1 | . . . . . . . . 1 . . . . . . . . . . . . . . . . . Walls Destroyed 1 | . . . . . . . . 1 . . . . . . . . . . . . . . . . . Machines Disabled . | . . . . . . . . . . . . . . . . . . . . . . . . . . Actions | -11 -10 -10 -9 -9 -9 -8 -8 -7 -7 -7 -7 -7 -6 -6 -6 -6 -6 -5 -5 -5 -5 -5 -5 -5 -5 --------- Run | Jun Mat Min Mat Min Exi Min Mat Fac Low Low Zio Dee Pro Fac Low Low Dat Pro Fac Was Fac Ext Cet Arc Hub Total 15565 | . 1223 378 840 467 377 292 728 438 347 536 844 1879 316 611 1006 493 78 715 344 341 1614 980 387 199 132 Wait 2877 | . 117 38 21 6 . 2 32 28 . 19 47 401 6 35 635 . . 399 40 30 465 245 148 143 20 Move 10639 | . 983 300 570 424 377 260 522 366 336 463 760 1199 294 514 327 478 78 307 272 247 864 415 185 41 57 Hop . | . . . . . . . . . . . . . . . . . . . . . . . . . . Pick Up 199 | . 21 8 19 6 . 2 28 6 3 6 4 27 4 3 3 2 . . 4 4 19 17 10 . 3 Fast Attach 80 | . 10 2 6 . . . 6 4 1 2 3 21 . 1 . 1 . . 1 4 12 3 2 1 . Attach 82 | . 4 1 6 1 . 3 12 2 . 8 1 12 . 5 4 . . . . 1 16 4 2 . . Detach 19 | . . . . . . . . . . 1 1 6 . 1 2 . . 1 . . 7 . . . . Swap 112 | . 6 3 21 4 . 2 16 6 1 8 2 28 . 2 5 . . 1 2 . 3 1 . . 1 Drop 246 | . 5 10 21 6 . 1 26 12 5 1 4 59 4 5 3 . . 1 5 13 34 10 18 . 3 Fire 949 | . 77 15 108 20 . 21 85 12 1 15 . 113 8 39 21 12 . 6 15 42 190 66 21 14 48 Melee 57 | . . . 2 . . . . 1 . 13 22 13 . . 6 . . . . . . . . . . Ram 6 | . . 1 3 . . . . 1 . . . . . . . . . . . . 1 . . . . Kick 4 | . . . . . . . . . . . . . . 1 . . . . . . 3 . . . . Crush 2 | . . . 1 . . 1 . . . . . . . . . . . . . . . . . . . Escape Stasis 20 | . . . . . . . . . . . . . . 5 . . . . 5 . . 10 . . . Rewire 210 | . . . . . . . . . . . . . . . . . . . . . . 209 1 . . Trap 63 | . . . 62 . . . 1 . . . . . . . . . . . . . . . . . . Miscellaneous . | . . . . . . . . . . . . . . . . . . . . . . . . . . Route ------- -11/Junkyard -10/Materials (discovered 4 exits: *Mat x3 / [*Min]) -10/Mines -9/Materials (discovered 4 exits: *Mat x2 / *Min x2) -9/Mines (discovered 4 exits: *Mat x2 / *Exi / *Zio) -9/Exiles -8/Mines -8/Materials (discovered 2 exits: *Fac x2) -7/Factory -7/Lower Caves -7/Lower Caves -7/Zion -7/Deep Caves -6/Proximity Caves -6/Factory (discovered 2 exits: *Fac / *Low) -6/Lower Caves -6/Lower Caves -6/Data Miner -5/Proximity Caves -5/Factory -5/Waste -5/Factory (discovered 4 exits: Upp x2 / *Ext x2) -5/Extension (discovered 3 exits: *Fac x2 / *Cet) -5/Cetus (discovered 2 exits: *Fac / [*Arc]) -5/Archives -5/Hub_04(d) History --------- Turn | Location | Event 1 | -11/Junkyard | Discovered new exit (range 0) 1 | -11/Junkyard | Entered Materials 315 | -10/Materials | Build established: Mutant 435 | -10/Materials | Discovered new exit (range 9) 861 | -10/Materials | Repaired Lgt. Treads 888 | -10/Materials | Repaired Wheel 1412 | -10/Materials | Discovered new exit (range 9) 1648 | -10/Materials | Discovered new exit (range 14) 2386 | -10/Materials | Discovered new exit (range 15) 2459 | -10/Materials | Entered Mines 2556 | -10/Mines | Found a hidden stash of uninstalled traps 2579 | -10/Mines | Build established: Scavenger-Mutant 2672 | -10/Mines | Learned 8 Materials zone layouts 2900 | -10/Mines | Joined a pair of Derelicts in attacking an 0b10 outpost 3047 | -10/Mines | Discovered new exit (range 10) 3153 | -10/Mines | Entered Materials 3153 | -9/Materials | Evolved 2 slots: Utility x2 3154 | -9/Materials | Identified exit to Materials 3154 | -9/Materials | Identified exit to Mines 3905 | -9/Materials | Build established: Mutant 4155 | -9/Materials | Discovered exit to Mines (range 11) 4868 | -9/Materials | Entered Mines 4901 | -9/Mines | Discovered exit to Materials (range 12) 5233 | -9/Mines | A Derelict revealed a hidden shortcut to a safe place 5242 | -9/Mines | Learned location of Storage (-7) 5254 | -9/Mines | Received a Rocket Launcher from a helpful Derelict 5298 | -9/Mines | Met a Derelict who couldn't figure out how to use a Trap Extractor 5781 | -9/Mines | Discovered exit to Materials (range 12) 5849 | -9/Mines | Deemed a non-threat by the Exiles lab entrance 5849 | -9/Mines | Discovered new exit (range 5) 5858 | -9/Mines | Entered Exiles 5858 | -9/Exiles | Found Exiles lab abandoned 6645 | -9/Exiles | Discovered new exit (range 14) 6669 | -9/Exiles | Entered Mines 7007 | -8/Mines | Core integrity fell below 50% 7274 | -8/Mines | Discovered exit to Materials (range 16) 7306 | -8/Mines | Entered Materials 7306 | -8/Materials | Evolved 2 slots: Propulsion x1, Utility x1 7561 | -8/Materials | Lost 4 parts (2n2u) 7586 | -8/Materials | Destroyed 7 combat bots 7617 | -8/Materials | Build established: Scavenger-Mutant 7888 | -8/Materials | Discovered new exit (range 16) 8541 | -8/Materials | Destroyed 8 combat bots 8818 | -8/Materials | Discovered new exit (range 9) 8843 | -8/Materials | Identified exit to Factory 8845 | -8/Materials | Entered Factory 8845 | -7/Factory | Evolved 2 slots: Power x1, Utility x1 9298 | -7/Factory | Build established: Mutant 9442 | -7/Factory | Discovered new exit (range 16) 9516 | -7/Factory | Identified exit to Lower Caves 9655 | -7/Factory | Found Prototype Launcher 9655 | -7/Factory | Identified Rocket Array 9664 | -7/Factory | Found Rocket Array 9790 | -7/Factory | Build established: Scavenger-Mutant 9846 | -7/Factory | Entered Lower Caves 9857 | -7/Lower Caves | Encountered a Warlord checkpoint 10580 | -7/Lower Caves | Discovered new exit (range 11) 10605 | -7/Lower Caves | Identified exit to Lower Caves 10683 | -7/Lower Caves | Entered another Lower Caves area 10878 | -7/Lower Caves | Attracted the attention of an 0b10 outpost 10934 | -7/Lower Caves | Destroyed 12 combat bots 10976 | -7/Lower Caves | Lost 11 parts (2p3n4u2w) 11192 | -7/Lower Caves | Build established: Mutant 11361 | -7/Lower Caves | Learned Factory non-interactive machine intel 11934 | -7/Lower Caves | Discovered new exit (range 6) 11947 | -7/Lower Caves | System corruption reached 10% 11950 | -7/Lower Caves | System corruption reached 30% 11951 | -7/Lower Caves | Entered Zion 12220 | -7/Zion | Found Rocket Array 12266 | -7/Zion | System corruption cleaned by Quarantine Array 12505 | -7/Zion | Learned Factory security intel 12553 | -7/Zion | Identified exit to Deep Caves 12673 | -7/Zion | Build established: Derelict-Mutant 12939 | -7/Zion | Learned location of Armory (-4) 13018 | -7/Zion | Received a visual enhancement algorithm 13587 | -7/Zion | Given A8's code to call for help 13821 | -7/Zion | Saw the warning signs outside the Deep Caves entrance 13867 | -7/Zion | Enhanced Grunt warped into view, answering call for help 13870 | -7/Zion | Enhanced Grunt warped into view, answering call for help 13903 | -7/Zion | Entered Deep Caves 13903 | -7/Deep Caves | Accompanied by 2 allies 14364 | -7/Deep Caves | Z-Facility disabled 14367 | -7/Deep Caves | Attacked by Z-Imprinter 14371 | -7/Deep Caves | Core integrity fell below 50% 14375 | -7/Deep Caves | Destroyed Z-Imprinter 14425 | -7/Deep Caves | Found Prototype Protection 14448 | -7/Deep Caves | Identified Zio. Weapon Casing 14739 | -7/Deep Caves | Build established: Scavenger-Mutant 14827 | -7/Deep Caves | Found Prototype Device 14827 | -7/Deep Caves | Identified Exp. Thermal Shield 15187 | -7/Deep Caves | Found Prototype Protection 15187 | -7/Deep Caves | Identified Zio. Heavy Carapace 15875 | -7/Deep Caves | Discovered new exit (range 6) 16044 | -7/Deep Caves | Spotted as-24868 16079 | -7/Deep Caves | Destroyed as-24868 16097 | -7/Deep Caves | Found GOLEM Unit 16208 | -7/Deep Caves | Triggered Deep Caves wall 16208 | -7/Deep Caves | Spotted AS-42657 16210 | -7/Deep Caves | Core integrity fell below 20% 16210 | -7/Deep Caves | Destroyed AS-24483 16215 | -7/Deep Caves | Destroyed AS-42657 16236 | -7/Deep Caves | Destroyed 35 combat bots 16251 | -7/Deep Caves | Exposed GOLEM chamber 16258 | -7/Deep Caves | Found GOLEM Unit 16265 | -7/Deep Caves | Found GOLEM Unit 16294 | -7/Deep Caves | Spotted as-75714 16329 | -7/Deep Caves | Destroyed as-75714 16338 | -7/Deep Caves | Found GOLEM Unit 16410 | -7/Deep Caves | Found Prototype Device 16411 | -7/Deep Caves | Identified Trap Reconfigurator 16578 | -7/Deep Caves | Build established: Golem 17451 | -7/Deep Caves | Found Zio. Heavy Carapace 17651 | -7/Deep Caves | Entered Proximity Caves 18287 | -6/Proximity Caves | Discovered new exit (range 8) 18304 | -6/Proximity Caves | Entered Factory 18304 | -6/Factory | Evolved 2 slots: Propulsion x1, Utility x1 18305 | -6/Factory | Identified exit to Lower Caves 18307 | -6/Factory | Loaded intel: 199 non-interactive machine locations 18592 | -6/Factory | Discovered new exit (range 6) 19543 | -6/Factory | Entered Lower Caves 20002 | -6/Lower Caves | Spotted B-75 Beast 20018 | -6/Lower Caves | Destroyed B-75 Beast 20194 | -6/Lower Caves | Attracted the attention of an 0b10 base 20246 | -6/Lower Caves | Destroyed 9 combat bots 20275 | -6/Lower Caves | Lost 7 parts (1p2n2u2w) 20941 | -6/Lower Caves | Discovered new exit (range 7) 20955 | -6/Lower Caves | Entered another Lower Caves area 20956 | -6/Lower Caves | Encountered a Warlord checkpoint 21686 | -6/Lower Caves | Discovered new exit (range 15) 21999 | -6/Lower Caves | Entered Data Miner 21999 | -6/Data Miner | Discovered new exit (range 6) 22039 | -6/Data Miner | Met Data Miner 22096 | -6/Data Miner | Learned location of Section 7 (-2) 22096 | -6/Data Miner | Acquired the access code to Warlord's prototype stash 22115 | -6/Data Miner | Received God Mode back door access code from Data Miner 22163 | -6/Data Miner | Entered Proximity Caves 22509 | -5/Proximity Caves | Escorted by Enhanced Grunt 22576 | -5/Proximity Caves | Learned Factory terminal intel 22637 | -5/Proximity Caves | Identified exit to Factory 23228 | -5/Proximity Caves | Entered Factory 23228 | -5/Factory | Accompanied by 1 ally 23228 | -5/Factory | Evolved 2 slots: Utility x2 23229 | -5/Factory | Loaded intel: 28 terminal locations 23816 | -5/Factory | Discovered new exit (range 5) 23829 | -5/Factory | Identified exit to Factory 23890 | -5/Factory | Sucked down chute 23890 | -5/Factory | Entered Waste 23891 | -5/Waste | Met a frightened Derelict 23905 | -5/Waste | EMP discharged 23907 | -5/Waste | Spotted C-40 Crusher 23947 | -5/Waste | Spotted C-40 Crusher 23988 | -5/Waste | Spotted C-40 Crusher 24005 | -5/Waste | EMP discharged 24005 | -5/Waste | System corruption reached 10% 24029 | -5/Waste | Destroyed C-40 Crusher 24060 | -5/Waste | Found Damper Plating 24105 | -5/Waste | EMP discharged 24117 | -5/Waste | Spotted C-40 Crusher 24186 | -5/Waste | Destroyed C-40 Crusher 24205 | -5/Waste | EMP discharged 24223 | -5/Waste | Spotted C-40 Crusher 24257 | -5/Waste | Spotted C-40 Crusher 24279 | -5/Waste | Destroyed C-40 Crusher 24290 | -5/Waste | Destroyed C-40 Crusher 24305 | -5/Waste | EMP discharged 24341 | -5/Waste | Destroyed C-40 Crusher 24344 | -5/Waste | Destroyed C-40 Crusher 24364 | -5/Waste | Found Damper Plating 24399 | -5/Waste | Found Damper Plating 24405 | -5/Waste | EMP discharged 24505 | -5/Waste | EMP discharged 24519 | -5/Waste | Discovered new exit (range 12) 24605 | -5/Waste | EMP discharged 24636 | -5/Waste | Entered Factory 25230 | -5/Factory | Spotted B-75 Beast 26436 | -5/Factory | First assault squad dispatched 26458 | -5/Factory | Incoming assault squad redirected 26473 | -5/Factory | Destroyed 10 combat bots 26474 | -5/Factory | Lost 3 parts (1n2u) 26975 | -5/Factory | Lost 3 parts (1p1n1w) 26992 | -5/Factory | Destroyed 7 combat bots 27058 | -5/Factory | Incoming assault squad redirected 27114 | -5/Factory | Identified exit to Upper Caves 27114 | -5/Factory | Identified exit to Extension 27305 | -5/Factory | Lost 3 parts (2n1w) 27458 | -5/Factory | High security lockdown imminent 27538 | -5/Factory | High security lockdown engaged 27643 | -5/Factory | Core integrity fell below 50% 27659 | -5/Factory | Entered Extension 27687 | -5/Extension | Lost 6 parts (2n3u1w) 27959 | -5/Extension | First assault squad dispatched 28037 | -5/Extension | Rescued a captive Derelict 28149 | -5/Extension | Rescued a captive Derelict 28155 | -5/Extension | Rescued a captive Derelict 28332 | -5/Extension | Rescued a captive Derelict 28489 | -5/Extension | Rescued A7 28495 | -5/Extension | Spotted B-75 Beast 28503 | -5/Extension | Spotted B-75 Beast 28520 | -5/Extension | Allies destroyed B-75 Beast 28537 | -5/Extension | Destroyed B-75 Beast 28555 | -5/Extension | Core integrity fell below 20% 28561 | -5/Extension | Discovered exit to Factory (range 15) 28577 | -5/Extension | Incoming assault squad redirected 28662 | -5/Extension | Rescued a captive Derelict 28663 | -5/Extension | Rescued a captive Derelict 29037 | -5/Extension | Rescued a captive Derelict 29039 | -5/Extension | Build established: Commander-Golem 29081 | -5/Extension | Discovered exit to Factory (range 10) 29083 | -5/Extension | Discovered new exit (range 6) 29111 | -5/Extension | Entered Cetus 29111 | -5/Cetus | Accompanied by 11 allies (A7) 29116 | -5/Cetus | Acquired a Cetus Manufacturing Module code from A7 29136 | -5/Cetus | Spotted Cetus Guard 29136 | -5/Cetus | Spotted Cetus Guard 29137 | -5/Cetus | Spotted Cetus Guard 29138 | -5/Cetus | Spotted Cetus Guard 29146 | -5/Cetus | Allies destroyed Cetus Guard 29147 | -5/Cetus | Allies destroyed Cetus Guard 29153 | -5/Cetus | Allies destroyed Cetus Guard 29157 | -5/Cetus | Allies destroyed Cetus Guard 29286 | -5/Cetus | Started Cetus Manufacturing Module 29293 | -5/Cetus | P-70 Sage assimilated allied PB-3AA(h) 29296 | -5/Cetus | P-70 Sage assimilated allied 06-RT0(b) 29302 | -5/Cetus | Cetus Manufacturing Module disabled 29322 | -5/Cetus | Escorted A7 to Cetus Mainframe 29382 | -5/Cetus | Discovered new exit (range 15) 29419 | -5/Cetus | Spotted Cetus Guard 29419 | -5/Cetus | Spotted Cetus Guard 29423 | -5/Cetus | Spotted Cetus Guard 29426 | -5/Cetus | Allies destroyed Cetus Guard 29430 | -5/Cetus | Allies destroyed Cetus Guard 29433 | -5/Cetus | Allies destroyed Cetus Guard 29433 | -5/Cetus | Spotted Cetus Guard 29434 | -5/Cetus | Allies destroyed Cetus Guard 29462 | -5/Cetus | Discovered exit to Factory (range 15) 29481 | -5/Cetus | Met Revision 17 29595 | -5/Cetus | Extracted ID and sensor layout for unrecognized location from A7's data core 29602 | -5/Cetus | Build established: Golem 29820 | -5/Cetus | Entered Archives 29820 | -5/Archives | Accompanied by 1 ally 30077 | -5/Archives | Discovered new exit (range 16) 30116 | -5/Archives | Entered Hub_04(d) 30274 | -5/Hub_04(d) | Network Hub disabled 30286 | -5/Hub_04(d) | Spotted Lightning 30286 | -5/Hub_04(d) | Spotted Lightning 30289 | -5/Hub_04(d) | Spotted Lightning 30297 | -5/Hub_04(d) | Spotted Lightning 30300 | -5/Hub_04(d) | Spotted Lightning 30303 | -5/Hub_04(d) | Destroyed Lightning 30323 | -5/Hub_04(d) | Spotted Lightning 30394 | -5/Hub_04(d) | Destroyed Lightning 30420 | -5/Hub_04(d) | Destroyed by Lightning with EMDS Last Messages --------------- 30395_ System corrupted: Heat flow error (+160). 30395_ K-01 Serf collects debris. 30398_ Penetrated by EMDS Slug. 30399_ K-01 Serf collects debris. 30400_ Penetrated by EMDS Slug. 30402_ K-01 Serf collects debris. 30406_ Penetrated by EMDS Slug. 30407_ K-01 Serf collects debris. 30407_ Penetrated by EMDS Slug. 30410_ System corrupted: FCS attempts to trigger Asb. Focal Cannon. 30410_ System corrupted: Asb. Focal Cannon misfires. 30410_ K-01 Serf collects debris. 30414_ Penetrated by EMDS Slug. 30416_ Discarded Asb. Focal Cannon. 30417_ K-01 Serf destroyed. 30417_ ALERT: Construction progress impeded, dispatching reinforcements to local area. 30419_ Damper Plating destroyed. 30420_ GOLEM Unit beginning Asb. Nanovents integration. 30420_ Penetrated by EMDS Slug. Map ----- +----------------------------------------------------+ | ?????????????????????????????????????????????????? | | ?????????????????????????????????????????????????? | | ?????????????????????????????????????????????????? | | ?????????????????????????????????????????????????? | | ?????????????????????????????????????????????????? | | ?????????????????????????????????????????????????? | | ?????????????????????????????????????????????????? | | ?????????????????????????????????????????????????? | | ?????????????????????????????????????????????????? | | ?????????????????????????????????????????????????? | | ?????????????????????????????????????????????????? | | ?????????????????????????????????????????????????? | | ?????????????????????????????????????????????????? | | ?????????????????????????????????????????????????? | | ?????????????????????????????????????????????????? | | ?????????????????????###########?????????????????? | | ?????????????????????# #?????????????????? | | ?????????????????????#" #?????????????????? | | ?????????????????????#T #?????????????????? | | ?????????????????????#" """"#?????????????????? | | ???????????#?????????# """"#?????????????????? | | ???????????# ????????# """"#?????????????????? | | ???????????# ????????# """"#?????????????????? | | ?? ???????# ?# ??# #?????????#######?? | | ?? ???# ## ###;############### #?? | | ?# = h @ [ #?? | | ????? R %% h #?? | | ?????????? h """ " #?? | | ?????? ???? ##########=== %""T " #?? | | ?????? h%= ??######?#=== #?## | | ??????? # !* ##### ###== #? | | ???????????# % / * *| # " | | ??????????# "" ##### % || # " | | ??????????## """" #???# ############# + " | | ???????????# """" #???## ##???????????# # | | ???????????# """" #????# #????????????# # | | ???????????# #????# #????????????# #? | | ???????????###########????# #????????????# #? | | ??????????????????????????# #????????????# #??# | | ??????????????????????????#++#????????????#####??? | | ?????????????????????????? ???????????????????? | | ?????????????????????????? ???????????????????? | | ?????????????????????????? " ???????????????????? | | ????????????????????????? """???????????????????? | | ????????????????????????? """"???????????????????? | | ?????????????????????????""??????????????????????? | | ?????????????????????????????????????????????????? | | ?????????????????????????????????????????????????? | | ?????????????????????????????????????????????????? | | ?????????????????????????????????????????????????? | +----------------------------------------------------+ Best States ------------- Heat Dissipation 70 Energy Generation 45 Energy Capacity 1550 Matter Stores 300 Matter Capacity 300 Sight Range 16 Robot Scan Range 15 Terrain Scan Range 20 Terrain Scan Density 210 Jamming Range 12 Cloak Strength 2 Armor Coverage 3200 Resistance: KI 30 Resistance: TH 15 Resistance: EX 15 Resistance: EM 90 Resistance: I 15 Resistance: S 15 Resistance: P 15 Weapon Shielding 100 Phase Shifting 5 Evasion (%) 55 Targeting Accuracy 8 Target Analysis 7 Core Analysis 6 Recoil Reduction 4 Particle Charging 25 Offensive Hacking 14 Trap Extractor Capacity 6 Item Schematics ----------------- Med. Storage Unit | -9/Materials | Scanalyzed Sensor Array | -9/Materials | Scanalyzed Welding Torch | -9/Materials | Extracted Imp. Aluminum Leg | -9/Materials | Extracted Fission Core | -7/Zion | Archive Mak. Power Source | -7/Zion | Archive Flak Gun | -7/Zion | Archive Lrn. Missile Launcher | -7/Zion | Archive Imp. Plasma Cutter | -7/Zion | Archive Energy Filter | -7/Zion | Archive Adv. Terrain Scanner | -7/Zion | Archive Mak. Shrapnel Gun | -7/Zion | Archive Imp. Trap Scanner | -7/Zion | Archive Proton Missile Launcher | -7/Zion | Archive Imp. EM Pulse Cannon | -7/Zion | Archive Imp. Actuator Array | -7/Zion | Archive Arc Projector | -7/Zion | Archive Imp. Recalibrator | -7/Zion | Archive Bore Cannon | -7/Zion | Free Combat Drone Bay | -6/Data Miner | Free Lgt. Regenerative Plating | -6/Data Miner | Free Cld. Nuclear Pulse Thruster | -6/Data Miner | Free Prc. Matter Filter | -6/Data Miner | Free Hvy. Gatling Laser | -6/Data Miner | Free Adv. VSS Leg | -6/Data Miner | Free Adv. Transmission Jammer | -6/Data Miner | Free Hardcell Cannon | -6/Data Miner | Free Adv. Heavy Treads | -6/Data Miner | Free Robot Schematics ------------------ K-01 Serf | -7/Zion | Archive L-41 Fighter | -7/Zion | Archive T-07 Excavator | -7/Zion | Archive X-77 Beamer | -7/Zion | Archive R-10 Processor | -6/Data Miner | Free A-15 Conveyor | -6/Data Miner | Free Y-64 Sentinel | -6/Data Miner | Free G-67 Veteran | -6/Data Miner | Free Fabricated ------------ Nothing Alien Tech Used ----------------- None Achievements -------------- Gun Specialist Challenges ------------ None Game ------ Seed PlasmaShrapnelFacilitator Manual? 0 Play Time 03:22:30 Cumulative 217.1 hours Start 2023.02.01 @ 20:00:19 End 2023.02.05 @ 22:55:28 Sessions 7 Manual Loads 0 Difficulty Rogue Special Mode None Game No. 286 Rogue 286 Adventurer 0 Explorer 0 Win Type - Total 5 Types 1/0/3/0/0/0/1/0/0 Lore% 77 Gallery% 84 Achievement% 65 Wizard Run 0 Options --------- ASCII 0 Keyboard 0 Movement Numpad Keybinds 0 Fullscreen 1 Font 18/SmallcapsGlow Map View 76x50 Tactical HUD 1 Map Filters NONE Filters NONE Steam 1 RUN: 819851b8-4a7f-4571-b60c-49e13aad951e